fUST/lending_fUST_20240910
["ID","MTS","AMOUNT","RATE_DAILY","PERIOD"]
[337657504,1725922243043,-500.0,0.00024989,2]
[337657505,1725922243053,-500.0,0.00024989,2]
[337657506,1725922243063,-500.0,0.00024989,2]
[337657507,1725922243072,-501.39097544,0.00024989,2]
[337657508,1725922243081,-505.20000706,0.00024989,2]
[337657509,1725922243091,-500.0,0.00024989,2]
[337657510,1725922243100,-502.16095731,0.00024989,2]
[337657511,1725922243109,-501.73824365,0.00024989,2]
[337657512,1725922243119,-500.0,0.00024989,2]
[337657513,1725922243128,-500.0,0.00024989,2]
[337657514,1725922243137,-500.0,0.00024989,2]
[337657515,1725922243148,-567.56,0.00024989,2]
[337657520,1725922243276,-500.0,0.00024989,2]
[337657522,1725922243286,-500.0,0.00024989,2]
[337657523,1725922243295,-500.0,0.00024989,2]
[337657525,1725922243304,-500.0,0.00024989,2]
[337657527,1725922243314,-796.58,0.00024989,2]
[337657529,1725922243323,-500.0,0.00024989,2]
[337657531,1725922243331,-500.0,0.00024989,2]
[337657533,1725922243341,-500.0,0.00024989,2]
[337657535,1725922243350,-1076.49,0.00024989,2]
[337657537,1725922243360,-505.23180981,0.00024989,2]
[337657539,1725922243370,-500.0,0.00024989,2]
[337657541,1725922243379,-796.83,0.00024989,2]
[337657543,1725922243388,-151.0,0.00024989,2]
[337657545,1725922243398,-508.98,0.00024989,2]
[337657547,1725922243407,-502.08844306,0.00024989,2]
[337657549,1725922243415,-521.75146082,0.00024989,2]
[337657550,1725922243424,-507.92,0.00024989,2]
[337657552,1725922243434,-500.0,0.00024989,2]
[337657554,1725922243443,-500.0,0.00024989,2]
[337657556,1725922243455,-500.0,0.00024989,2]
[337657558,1725922243467,-500.0,0.00024989,2]
[337657560,1725922243477,-504.22030287,0.00024989,2]
[337657562,1725922243486,-955.42,0.00024989,2]
[337657565,1725922243497,-500.0,0.00024989,2]
[337657567,1725922243506,-500.0,0.00024989,2]
[337657569,1725922243515,-500.0,0.00024989,2]
[337657571,1725922243527,-500.0,0.00024989,2]
[337657573,1725922243536,-500.0,0.00024989,2]
[337657575,1725922243546,-779.38,0.00024989,2]
[337657577,1725922243557,-500.0,0.00024989,2]
[337657579,1725922243567,-500.0,0.00024989,2]
[337657581,1725922243576,-500.0,0.00024989,2]
[337657583,1725922243586,-500.0,0.00024989,2]
[337657585,1725922243595,-1108.89,0.00024989,2]
[337657587,1725922243605,-500.0,0.00024989,2]
[337657589,1725922243615,-837.74,0.00024989,2]
[337657591,1725922243626,-500.0,0.00024989,2]
[337657594,1725922243636,-500.0,0.00024989,2]
[337657596,1725922243647,-1032.1,0.00024989,2]
[337657598,1725922243656,-500.0,0.00024989,2]
[337657600,1725922243665,-1067.14,0.00024989,2]
[337657602,1725922243675,-500.0,0.00024989,2]
[337657604,1725922243684,-500.0,0.00024989,2]
[337657606,1725922243695,-500.0,0.00024989,2]
[337657608,1725922243709,-807.78,0.00024989,2]
[337657610,1725922243719,-500.0,0.00024989,2]
[337657612,1725922243728,-500.0,0.00024989,2]
[337657614,1725922243739,-500.0,0.00024989,2]
[337657616,1725922243750,-744.09,0.00024989,2]
[337657618,1725922243760,-500.0,0.00024989,2]
[337657620,1725922243772,-2007.96,0.00024989,2]
[337657622,1725922243782,-500.44967905,0.00024989,2]
[337657624,1725922243792,-2184.14,0.00024989,2]
[337657626,1725922243803,-500.92139125,0.00024989,2]
[337657628,1725922243814,-500.0,0.00024989,2]
[337657629,1725922243823,-500.0,0.00024989,2]
[337657630,1725922243833,-500.0,0.00024989,2]
[337657631,1725922243842,-500.0,0.00024989,2]
[337657632,1725922243853,-230.19581965,0.00024989,2]
[337657633,1725922243862,-500.0,0.00024989,2]
[337657634,1725922243873,-500.0,0.00024989,2]
[337657635,1725922243883,-1303.77,0.00024989,2]
[337657636,1725922243892,-500.0,0.00024989,2]
[337657637,1725922243902,-500.0,0.00024989,2]
[337657638,1725922243911,-500.0,0.00024989,2]
[337657639,1725922243921,-867.25,0.00024989,2]
[337657640,1725922243930,-500.0,0.00024989,2]
[337657641,1725922243941,-926.59,0.00024989,2]
[337657642,1725922243951,-500.0,0.00024989,2]
[337657643,1725922243961,-500.0,0.00024989,2]
[337657644,1725922243971,-500.0,0.00024989,2]
[337657645,1725922243981,-2077.09,0.00024989,2]
[337657646,1725922243991,-245.978072,0.00024989,7]
[337657647,1725922244001,-207.968246,0.00024989,7]
[337657648,1725922244011,-207.968246,0.00024989,7]
[337657649,1725922244022,-500.0,0.00024989,2]
[337657650,1725922244031,-1023.46,0.00024989,2]
[337657651,1725922244041,-877.82,0.00024989,2]
[337657652,1725922244050,-214.503406,0.00024989,7]
[337657653,1725922244060,-2032.16,0.00024989,2]
[337657654,1725922244070,-214.503406,0.00024989,7]
[337657655,1725922244080,-2118.12,0.00024989,2]
[337657656,1725922244089,-1631.8,0.00024989,2]
[337657657,1725922244099,-157.138866,0.00024989,7]
[337657658,1725922244108,-32719.02,0.00024989,2]
[337657659,1725922244118,-157.138866,0.00024989,7]
[337657660,1725922244128,-2019.71,0.00024989,2]
[337657661,1725922244139,-500.0,0.00024989,2]
[337657662,1725922244149,-708.37,0.00024989,2]
[337657663,1725922244158,-500.0,0.00024989,2]
[337657664,1725922244168,-1584.91,0.00024989,2]
[337657665,1725922244178,-500.0,0.00024989,2]
[337657666,1725922244188,-500.0,0.00024989,2]
[337657667,1725922244197,-500.0,0.00024989,2]
[337657668,1725922244209,-500.0,0.00024989,2]
[337657669,1725922244219,-500.0,0.00024989,2]
[337657670,1725922244230,-500.0,0.00024989,2]
[337657671,1725922244239,-672.17,0.00024989,2]
[337657672,1725922244249,-500.87711517,0.00024989,2]
[337657673,1725922244258,-1361.36,0.00024989,2]
[337657674,1725922244267,-569.88,0.00024989,2]
[337657675,1725922244277,-7889.45,0.00024989,2]
[337657676,1725922244293,-1030.55,0.00024989,2]
[337657677,1725922244313,-500.0,0.00024989,2]
[337657678,1725922244328,-500.0,0.00024989,2]
[337657679,1725922244344,-1093.82,0.00024989,2]
[337657680,1725922244362,-1000.81,0.00024989,2]
[337657681,1725922244380,-242.65168795,0.00024989,2]
[337657682,1725922244398,-1809.12,0.00024989,2]
[337657685,1725922244413,-500.0,0.00024989,2]
[337657687,1725922244428,-452.000455,0.00024989,7]
[337657689,1725922244445,-500.48690562,0.00024989,2]
[337657690,1725922244459,-520.07826471,0.00024989,2]
[337657691,1725922244473,-500.0,0.00024989,2]
[337657692,1725922244488,-452.000455,0.00024989,7]
[337657693,1725922244503,-1831.65,0.00024989,2]
[337657694,1725922244520,-597.62,0.00024989,2]
[337657695,1725922244536,-4834.03,0.00024989,2]
[337657696,1725922244548,-500.0,0.00024989,2]
[337657697,1725922244560,-232.38902857,0.00024989,2]
[337657698,1725922244575,-500.0,0.00024989,2]
[337657699,1725922244588,-761.52,0.00024989,2]
[337657700,1725922244602,-500.0,0.00024989,2]
[337657701,1725922244617,-500.0,0.00024989,2]
[337657702,1725922244629,-500.0,0.00024989,2]
[337657703,1725922244641,-500.0,0.00024989,2]
[337657704,1725922244654,-715.14,0.00024989,2]
[337657705,1725922244666,-694.16,0.00024989,2]
[337657706,1725922244679,-585.1,0.00024989,2]
[337657707,1725922244694,-824.22,0.00024989,2]
[337657708,1725922244707,-684.39,0.00024989,2]
[337657709,1725922244720,-442.271963,0.00024989,7]
[337657710,1725922244734,-442.271963,0.00024989,7]
[337657711,1725922244747,-643.50107225,0.00024989,2]
[337657712,1725922244760,-1304.66,0.00024989,2]
[337657713,1725922244776,-151.0,0.00024989,7]
[337657714,1725922244789,-500.0,0.00024989,2]
[337657715,1725922244801,-500.0,0.00024989,2]
[337657716,1725922244813,-151.0,0.00024989,7]
[337657717,1725922244826,-501.69705807,0.00024989,2]
[337657718,1725922244839,-724.54,0.00024989,2]
[337657719,1725922244851,-500.0,0.00024989,2]
[337657720,1725922244866,-1178.91,0.00024989,2]
[337657721,1725922244879,-36355.83785408,0.00024994,2]
[337657723,1725922245572,-9237.91214592,0.00024994,2]
[337657724,1725922245584,-500.0,0.00024994,2]
[337657725,1725922245594,-500.0,0.00024994,2]
[337657726,1725922245603,-500.0,0.00024994,2]
[337657727,1725922245612,-4000.58,0.00024994,2]
[337657728,1725922245621,-500.0,0.00024994,2]
[337657729,1725922245631,-602.85,0.00024994,2]
[337657730,1725922245640,-500.0,0.00024994,2]
[337657731,1725922245650,-233.198536,0.00024994,7]
[337657732,1725922245660,-233.198536,0.00024994,7]
[337657733,1725922245669,-500.0,0.00024994,2]
[337657734,1725922245678,-625.01165026,0.00024994,2]
[337657735,1725922245690,-534.35,0.00024994,2]
[337657736,1725922245702,-1533.31,0.00024994,2]
[337657737,1725922245712,-2278.97,0.00024994,2]
[337657738,1725922245721,-4621.43,0.00024994,2]
[337657739,1725922245730,-1288.218274,0.00024994,7]
[337657740,1725922245740,-1288.218274,0.00024994,7]
[337657741,1725922245750,-151.0,0.00024994,7]
[337657742,1725922245759,-151.0,0.00024994,7]
[337657743,1725922245770,-906.69,0.00024994,2]
[337657744,1725922245779,-500.0,0.00024994,2]
[337657745,1725922245788,-500.0,0.00024994,2]
[337657746,1725922245797,-500.0,0.00024994,2]
[337657747,1725922245807,-247.188886,0.00024994,7]
[337657748,1725922245816,-500.0,0.00024994,2]
[337657749,1725922245825,-247.188886,0.00024994,7]
[337657750,1725922245834,-654.555546,0.00024994,7]
[337657751,1725922245844,-654.555546,0.00024994,7]
[337657752,1725922245853,-589.5,0.00024994,2]
[337657753,1725922245862,-457.473571,0.00024994,7]
[337657754,1725922245872,-457.473571,0.00024994,7]
[337657755,1725922245881,-500.0,0.00024994,2]
[337657757,1725922245890,-1263.74,0.00024994,2]
[337657759,1725922245900,-721.33,0.00024994,2]
[337657761,1725922245909,-1381.29,0.00024994,2]
[337657763,1725922245919,-902.33830877,0.00024999,2]
[337657764,1725922245928,-500.0,0.00024999,2]
[337657766,1725922245938,-500.0,0.00024999,2]
[337657768,1725922245950,-567.56,0.00024999,2]
[337657770,1725922245961,-567.56,0.00024999,2]
[337657772,1725922245971,-500.0,0.00024999,2]
[337657774,1725922245981,-500.0,0.00024999,2]
[337657776,1725922245991,-72731.17,0.00025,2]
[337657778,1725922246001,-150.112233,0.00025,4]
[337657780,1725922246011,-150.112235,0.00025,3]
[337657783,1725922246020,-245.978072,0.00025,7]
[337657784,1725922246030,-207.968246,0.00025,7]
[337657786,1725922246040,-207.968246,0.00025,7]
[337657788,1725922246049,-214.503406,0.00025,7]
[337657790,1725922246059,-214.503406,0.00025,7]
[337657792,1725922246068,-157.138866,0.00025,7]
[337657794,1725922246077,-157.138866,0.00025,7]
[337657796,1725922246087,-452.000455,0.00025,7]
[337657798,1725922246096,-452.000455,0.00025,7]
[337657800,1725922246106,-442.271963,0.00025,7]
[337657801,1725922246115,-442.271963,0.00025,7]
[337657803,1725922246125,-299.069724,0.00025,7]
[337657805,1725922246134,-151.0,0.00025,7]
[337657807,1725922246144,-5735.9,0.0002501,2]
[337657809,1725922246154,-213.748964,0.0002501,7]
[337657810,1725922246163,-233.198536,0.0002501,7]
[337657812,1725922246172,-233.198536,0.0002501,7]
[337657814,1725922246181,-1288.218274,0.0002501,7]
[337657816,1725922246190,-1288.218274,0.0002501,7]
[337657817,1725922246200,-151.0,0.0002501,7]
[337657819,1725922246210,-151.0,0.0002501,7]
[337657821,1725922246219,-247.188886,0.0002501,7]
[337657823,1725922246229,-247.188886,0.0002501,7]
[337657824,1725922246238,-654.555546,0.0002501,7]
[337657825,1725922246247,-654.555546,0.0002501,7]
[337657826,1725922246257,-457.473571,0.0002501,7]
[337657827,1725922246266,-457.473571,0.0002501,7]
[337657828,1725922246275,-151.0,0.00025029,7]
[337657829,1725922246284,-212.229401,0.00025029,7]
[337657830,1725922246295,-158.39303,0.00025029,7]
[337657831,1725922246305,-500.0,0.00025039,2]
[337657832,1725922246316,-500.0,0.00025039,2]
[337657833,1725922246327,-501.05563708,0.00025039,2]
[337657834,1725922246336,-500.0,0.00025039,2]
[337657835,1725922246345,-448.34734926,0.00025039,2]
[337657836,1725922246354,-1545.68,0.00025039,2]
[337657837,1725922246364,-151.250872,0.00025039,2]
[337657838,1725922246374,-500.0,0.00025039,2]
[337657839,1725922246383,-511.21213967,0.00025039,2]
[337657840,1725922246393,-513.66900791,0.00025039,2]
[337657841,1725922246402,-500.0,0.00025039,2]
[337657842,1725922246411,-500.0,0.00025039,2]
[337657843,1725922246421,-500.0,0.00025039,2]
[337657844,1725922246430,-500.0,0.00025039,2]
[337657845,1725922246440,-500.0,0.00025039,2]
[337657846,1725922246450,-500.0,0.00025039,2]
[337657847,1725922246459,-500.0,0.00025039,2]
[337657848,1725922246468,-500.0,0.00025039,2]
[337657849,1725922246477,-513.24691996,0.00025039,2]
[337657850,1725922246487,-500.0,0.00025039,2]
[337657851,1725922246497,-151.0,0.00025039,7]
[337657852,1725922246506,-500.0,0.00025039,2]
[337657853,1725922246515,-151.0,0.00025039,7]
[337657854,1725922246525,-500.0,0.00025039,2]
[337657855,1725922246534,-717.2,0.00025039,2]
[337657856,1725922246543,-500.0,0.00025039,2]
[337657857,1725922246553,-896.05,0.00025039,2]
[337657858,1725922246562,-500.0,0.00025039,2]
[337657859,1725922246571,-500.0,0.00025039,2]
[337657860,1725922246580,-501.01035668,0.00025039,2]
[337657861,1725922246590,-500.0,0.00025039,2]
[337657862,1725922246599,-500.0,0.00025039,2]
[337657863,1725922246608,-500.0,0.00025039,2]
[337657864,1725922246617,-500.0,0.00025039,2]
[337657865,1725922246626,-151.0,0.00025039,7]
[337657866,1725922246635,-544.5,0.00025039,2]
[337657867,1725922246645,-500.0,0.00025039,2]
[337657868,1725922246654,-500.86179566,0.00025039,2]
[337657869,1725922246663,-427.14022128,0.00025039,2]
[337657870,1725922246672,-151.0,0.00025039,7]
[337657871,1725922246681,-500.0,0.00025039,2]
[337657872,1725922246692,-500.0,0.00025039,2]
[337657873,1725922246708,-500.0,0.00025039,2]
[337657874,1725922246720,-812.76,0.00025039,2]
[337657875,1725922246731,-500.0,0.00025039,2]
[337657876,1725922246740,-595.28,0.00025039,2]
[337657877,1725922246750,-718.59,0.00025039,2]
[337657878,1725922246761,-500.0,0.00025039,2]
[337657879,1725922246770,-501.99373175,0.00025039,2]
[337657880,1725922246780,-500.0,0.00025039,2]
[337657881,1725922246790,-500.0,0.00025039,2]
[337657882,1725922246799,-500.0,0.00025039,2]
[337657883,1725922246810,-500.0,0.00025039,2]
[337657884,1725922246819,-1385.82,0.00025039,2]
[337657885,1725922246829,-151.0,0.00025039,7]
[337657886,1725922246839,-500.98323211,0.00025039,2]
[337657887,1725922246848,-315.4854012,0.00025039,2]
[337657888,1725922246861,-500.0,0.00025039,2]
[337657889,1725922246872,-500.0,0.00025039,2]
[337657890,1725922246882,-521.81453931,0.00025039,2]
[337657891,1725922246893,-500.0,0.00025039,2]
[337657892,1725922246903,-500.0,0.00025039,2]
[337657893,1725922246913,-500.0,0.00025039,2]
[337657894,1725922246923,-500.0,0.00025039,2]
[337657895,1725922246932,-692.15,0.00025039,2]
[337657896,1725922246944,-530.53411282,0.00025039,2]
[337657897,1725922246957,-500.0,0.00025039,2]
[337657898,1725922246967,-500.0,0.00025039,2]
[337657899,1725922246977,-500.0,0.00025039,2]
[337657900,1725922246987,-152.188638,0.00025039,7]
[337657901,1725922246997,-1427.24,0.00025039,2]
[337657902,1725922247006,-500.0,0.00025039,2]
[337657903,1725922247016,-500.0,0.00025039,2]
[337657904,1725922247027,-500.0,0.00025039,2]
[337657905,1725922247038,-500.0,0.00025039,2]
[337657906,1725922247053,-500.0,0.00025039,2]
[337657907,1725922247063,-500.0,0.00025039,2]
[337657908,1725922247074,-500.0,0.00025039,2]
[337657909,1725922247084,-539.38485539,0.00025039,2]
[337657910,1725922247094,-500.0,0.00025039,2]
[337657911,1725922247105,-500.0,0.00025039,2]
[337657912,1725922247115,-500.0,0.00025039,2]
[337657913,1725922247127,-607.82,0.00025039,2]
[337657914,1725922247140,-500.0,0.00025039,2]
[337657915,1725922247150,-567.56,0.00025039,2]
[337657916,1725922247160,-500.0,0.00025039,2]
[337657917,1725922247170,-500.0,0.00025039,2]
[337657918,1725922247180,-577.62,0.00025039,2]
[337657919,1725922247190,-500.0,0.00025039,2]
[337657920,1725922247201,-500.0,0.00025039,2]
[337657921,1725922247211,-151.0,0.00025039,7]
[337657922,1725922247222,-532.579088,0.00025039,7]
[337657923,1725922247232,-532.579088,0.00025039,7]
[337657924,1725922247241,-500.0,0.00025039,2]
[337657925,1725922247251,-500.0,0.00025039,2]
[337657926,1725922247261,-500.0,0.00025039,2]
[337657927,1725922247271,-500.0,0.00025039,2]
[337657928,1725922247281,-501.79348152,0.00025039,2]
[337657929,1725922247291,-500.0,0.00025039,2]
[337657930,1725922247301,-500.36544117,0.00025039,2]
[337657931,1725922247311,-500.0,0.00025039,2]
[337657932,1725922247321,-151.0,0.00025039,7]
[337657933,1725922247331,-500.0,0.00025039,2]
[337657934,1725922247342,-500.0,0.00025039,2]
[337657935,1725922247352,-500.0,0.00025039,2]
[337657936,1725922247363,-500.9987486,0.00025039,2]
[337657937,1725922247372,-500.28680857,0.00025039,2]
[337657938,1725922247382,-500.0,0.00025039,2]
[337657939,1725922247392,-500.0,0.00025039,2]
[337657940,1725922247402,-151.0,0.00025039,2]
[337657941,1725922247412,-500.0,0.00025039,2]
[337657942,1725922247423,-533.28,0.00025039,2]
[337657943,1725922247434,-500.0,0.00025039,2]
[337657944,1725922247445,-500.0,0.00025039,2]
[337657945,1725922247459,-500.0,0.00025039,2]
[337657946,1725922247469,-500.0,0.00025039,2]
[337657947,1725922247480,-500.0,0.00025039,2]
[337657948,1725922247490,-500.0,0.00025039,2]
[337657949,1725922247500,-526.95,0.00025039,2]
[337657950,1725922247510,-500.0,0.00025039,2]
[337657951,1725922247521,-500.0,0.00025039,2]
[337657952,1725922247530,-500.0,0.00025039,2]
[337657953,1725922247542,-500.0,0.00025039,2]
[337657954,1725922247551,-500.0,0.00025039,2]
[337657955,1725922247562,-500.0,0.00025039,2]
[337657956,1725922247572,-500.0,0.00025039,2]
[337657957,1725922247581,-500.0,0.00025039,2]
[337657958,1725922247592,-500.0,0.00025039,2]
[337657959,1725922247602,-500.0,0.00025039,2]
[337657960,1725922247612,-500.0,0.00025039,2]
[337657961,1725922247623,-502.93046143,0.00025039,2]
[337657962,1725922247633,-502.12219496,0.00025039,2]
[337657963,1725922247644,-500.0,0.00025039,2]
[337657964,1725922247654,-500.0,0.00025039,2]
[337657965,1725922247667,-500.0,0.00025039,2]
[337657966,1725922247678,-500.0,0.00025039,2]
[337657967,1725922247688,-508.68,0.00025039,2]
[337657968,1725922247703,-500.0,0.00025039,2]
[337657969,1725922247714,-500.0,0.00025039,2]
[337657970,1725922247723,-973.09,0.00025039,2]
[337657971,1725922247734,-500.0,0.00025039,2]
[337657972,1725922247744,-500.0,0.00025039,2]
[337657973,1725922247755,-500.0,0.00025039,2]
[337657974,1725922247764,-500.0,0.00025039,2]
[337657975,1725922247775,-500.0,0.00025039,2]
[337657976,1725922247786,-500.0,0.00025039,2]
[337657977,1725922247795,-707.11,0.00025039,2]
[337657978,1725922247806,-151.0,0.00025039,7]
[337657979,1725922247816,-151.0,0.00025039,7]
[337657980,1725922247826,-151.0,0.00025039,7]
[337657981,1725922247837,-500.0,0.00025039,2]
[337657982,1725922247847,-501.08798804,0.00025039,2]
[337657983,1725922247858,-500.0,0.00025039,2]
[337657984,1725922247868,-500.0,0.00025039,2]
[337657985,1725922247877,-919.94,0.00025039,2]
[337657986,1725922247889,-500.0,0.00025039,2]
[337657987,1725922247899,-500.0,0.00025039,2]
[337657988,1725922247910,-500.0,0.00025039,2]
[337657989,1725922247919,-500.0,0.00025039,2]
[337657990,1725922247929,-501.55924787,0.00025039,2]
[337657991,1725922247939,-335.27202658,0.00025039,2]
[337657992,1725922247951,-508.52349011,0.00025039,2]
[337657993,1725922247961,-1050.83,0.00025039,2]
[337657994,1725922247973,-290.85437,0.00025039,7]
[337657995,1725922247983,-290.85437,0.00025039,7]
[337657996,1725922247994,-512.54770544,0.00025039,2]
[337657997,1725922248004,-500.0,0.00025039,2]
[337657998,1725922248015,-500.0,0.00025039,2]
[337657999,1725922248026,-500.0,0.00025039,2]
[337658000,1725922248037,-500.0,0.00025039,2]
[337658001,1725922248047,-500.0,0.00025039,2]
[337658002,1725922248057,-501.032209,0.00025039,2]
[337658003,1725922248068,-747.69,0.00025039,2]
[337658004,1725922248079,-4017.96,0.00025039,2]
[337658005,1725922248091,-500.0,0.00025039,2]
[337658006,1725922248100,-821.15,0.00025039,2]
[337658007,1725922248110,-500.0,0.00025039,2]
[337658008,1725922248122,-500.0,0.00025039,2]
[337658009,1725922248131,-501.25385802,0.00025039,2]
[337658010,1725922248141,-500.0,0.00025039,2]
[337658011,1725922248150,-766.18,0.00025039,2]
[337658012,1725922248159,-500.7802698,0.00025039,2]
[337658013,1725922248171,-500.0,0.00025039,2]
[337658014,1725922248182,-151.0,0.00025039,7]
[337658015,1725922248191,-500.0,0.00025039,2]
[337658016,1725922248202,-264.651072,0.00025039,7]
[337658017,1725922248212,-1386.75,0.00025039,2]
[337658018,1725922248222,-504.3628324,0.00025039,2]
[337658019,1725922248232,-500.0,0.00025039,2]
[337658020,1725922248243,-500.0,0.00025039,2]
[337658021,1725922248252,-705.83,0.00025039,2]
[337658022,1725922248262,-500.0,0.00025039,2]
[337658023,1725922248272,-245.978072,0.00025039,7]
[337658024,1725922248282,-167.664723,0.00025039,7]
[337658025,1725922248292,-500.0,0.00025039,2]
[337658026,1725922248303,-245.978072,0.00025039,7]
[337658027,1725922248312,-500.0,0.00025039,2]
[337658028,1725922248321,-207.968246,0.00025039,7]
[337658029,1725922248331,-207.968246,0.00025039,7]
[337658030,1725922248341,-500.0,0.00025039,2]
[337658031,1725922248351,-500.0,0.00025039,2]
[337658032,1725922248362,-500.0,0.00025039,2]
[337658033,1725922248371,-500.0,0.00025039,2]
[337658034,1725922248383,-960.65,0.00025039,2]
[337658035,1725922248392,-510.71981059,0.00025039,2]
[337658036,1725922248402,-511.65401674,0.00025039,2]
[337658037,1725922248412,-500.0,0.00025039,2]
[337658038,1725922248422,-500.0,0.00025039,2]
[337658039,1725922248431,-214.503406,0.00025039,7]
[337658040,1725922248440,-214.503406,0.00025039,7]
[337658041,1725922248450,-500.0,0.00025039,2]
[337658042,1725922248459,-500.51381378,0.00025039,2]
[337658043,1725922248468,-559.37,0.00025039,2]
[337658044,1725922248478,-500.0,0.00025039,2]
[337658045,1725922248488,-157.138866,0.00025039,7]
[337658046,1725922248498,-157.138866,0.00025039,7]
[337658047,1725922248507,-500.0,0.00025039,2]
[337658048,1725922248518,-500.0,0.00025039,2]
[337658049,1725922248527,-672.47,0.00025039,2]
[337658050,1725922248537,-233.198536,0.00025039,7]
[337658051,1725922248554,-233.198536,0.00025039,7]
[337658052,1725922248568,-500.0,0.00025039,2]
[337658053,1725922248578,-500.0,0.00025039,2]
[337658054,1725922248588,-500.0,0.00025039,2]
[337658055,1725922248599,-500.0,0.00025039,2]
[337658056,1725922248609,-501.74844636,0.00025039,2]
[337658057,1725922248620,-308.3517357,0.00025039,2]
[337658058,1725922248631,-500.0,0.00025039,2]
[337658059,1725922248642,-463.55958975,0.00025039,2]
[337658060,1725922248652,-500.0,0.00025039,2]
[337658061,1725922248662,-500.0,0.00025039,2]
[337658062,1725922248672,-521.22,0.00025039,2]
[337658063,1725922248683,-500.0,0.00025039,2]
[337658064,1725922248696,-642.7053625,0.00025039,2]
[337658065,1725922248707,-500.0,0.00025039,2]
[337658066,1725922248717,-616.38526506,0.00025039,2]
[337658067,1725922248727,-500.0,0.00025039,2]
[337658068,1725922248737,-1318.47,0.00025039,2]
[337658069,1725922248748,-501.01367125,0.00025039,2]
[337658070,1725922248758,-695.88,0.00025039,2]
[337658071,1725922248768,-500.0,0.00025039,2]
[337658072,1725922248779,-500.0,0.00025039,2]
[337658073,1725922248789,-1288.218274,0.00025039,7]
[337658074,1725922248799,-500.0,0.00025039,2]
[337658075,1725922249012,-500.0,0.00025039,2]
[337658076,1725922249030,-1288.218274,0.00025039,7]
[337658077,1725922249039,-500.0,0.00025039,2]
[337658078,1725922249049,-501.21850379,0.00025039,2]
[337658079,1725922249059,-925.74,0.00025039,2]
[337658080,1725922249069,-500.0,0.00025039,2]
[337658081,1725922249078,-151.0,0.00025039,7]
[337658082,1725922249088,-501.26533805,0.00025039,2]
[337658083,1725922249099,-2519.47,0.00025039,2]
[337658084,1725922249108,-500.0,0.00025039,2]
[337658085,1725922249118,-500.0,0.00025039,2]
[337658086,1725922249128,-452.000455,0.00025039,7]
[337658087,1725922249138,-500.0,0.00025039,2]
[337658088,1725922249147,-1385.19,0.00025039,2]
[337658089,1725922249157,-151.0,0.00025039,7]
[337658090,1725922249166,-452.000455,0.00025039,7]
[337658091,1725922249175,-500.0,0.00025039,2]
[337658092,1725922249185,-500.0,0.00025039,2]
[337658093,1725922249194,-500.0,0.00025039,2]
[337658094,1725922249204,-633.52,0.00025039,2]
[337658095,1725922249215,-500.0,0.00025039,2]
[337658096,1725922249225,-500.0,0.00025039,2]
[337658097,1725922249234,-502.40057922,0.00025039,2]
[337658098,1725922249243,-500.0,0.00025039,2]